[Event "Titled Tuesday Blitz May 23 Early 2023"]
[White "Sielecki, Christof"]
[Black "Kirillov, Dmitry"]
[WhiteFideId "4620437"]
[BlackFideId "34180572"]
[WhiteElo "2443"]
[BlackElo "2161"]
[Result "1-0"]
[Round "07"]
[TimeControl "180+2"]
[Date "2023.05.23"]
[WhiteClock "0:00:18"]
[BlackClock "0:00:01"]

1. e4 {[%clk 0:03:00]}  c6 {[%clk 0:02:58]} 2. d4 {[%clk 0:03:00]}  d5 {[%clk 0:02:59]} 3. exd5 {[%clk 0:03:01]}  cxd5 {[%clk 0:02:59]} 4. Bd3 {[%clk 0:03:01]}  Nc6 {[%clk 0:02:58]} 5. c3 {[%clk 0:03:01]}  Nf6 {[%clk 0:02:58]} 6. h3 {[%clk 0:03:01]}  g6 {[%clk 0:02:59]} 7. Nf3 {[%clk 0:03:01]}  Bg7 {[%clk 0:02:58]} 8. O-O {[%clk 0:03:02]}  O-O {[%clk 0:02:58]} 9. Re1 {[%clk 0:03:01]}  Bf5 {[%clk 0:02:59]} 10. Bf1 {[%clk 0:03:02]}  Rc8 {[%clk 0:02:56]} 11. Bf4 {[%clk 0:03:01]}  Qb6 {[%clk 0:02:49]} 12. Qb3 {[%clk 0:03:00]}  Rfe8 {[%clk 0:02:25]} 13. Nbd2 {[%clk 0:02:56]}  Na5 {[%clk 0:02:11]} 14. Qa3 {[%clk 0:02:51]}  Ne4 {[%clk 0:02:07]} 15. Nxe4 {[%clk 0:02:45]}  Bxe4 {[%clk 0:02:03]} 16. Ng5 {[%clk 0:02:27]}  Bh6 {[%clk 0:00:29]} 17. f3 {[%clk 0:01:41]}  Bf5 {[%clk 0:00:26]} 18. Rxe7 {[%clk 0:01:35]}  Bf8 {[%clk 0:00:25]} 19. Rxe8 {[%clk 0:01:32]}  Rxe8 {[%clk 0:00:26]} 20. Qa4 {[%clk 0:01:31]}  Nc6 {[%clk 0:00:22]} 21. Qb3 {[%clk 0:01:25]}  h6 {[%clk 0:00:20]} 22. Nxf7 {[%clk 0:01:04]}  Qxb3 {[%clk 0:00:16]} 23. axb3 {[%clk 0:01:02]}  Kxf7 {[%clk 0:00:16]} 24. b4 {[%clk 0:01:02]}  a6 {[%clk 0:00:13]} 25. b5 {[%clk 0:01:02]}  axb5 {[%clk 0:00:14]} 26. Bxb5 {[%clk 0:01:03]}  g5 {[%clk 0:00:13]} 27. Bg3 {[%clk 0:01:01]}  Rd8 {[%clk 0:00:07]} 28. h4 {[%clk 0:01:00]}  Bd6 {[%clk 0:00:06]} 29. Bxd6 {[%clk 0:00:57]}  Rxd6 {[%clk 0:00:07]} 30. hxg5 {[%clk 0:00:58]}  hxg5 {[%clk 0:00:07]} 31. Kf2 {[%clk 0:00:56]}  g4 {[%clk 0:00:06]} 32. fxg4 {[%clk 0:00:54]}  Bxg4 {[%clk 0:00:06]} 33. Kg3 {[%clk 0:00:55]}  Bd7 {[%clk 0:00:06]} 34. Rh1 {[%clk 0:00:50]}  Rg6+ {[%clk 0:00:06]} 35. Kf2 {[%clk 0:00:50]}  Rf6+ {[%clk 0:00:06]} 36. Ke3 {[%clk 0:00:49]}  Re6+ {[%clk 0:00:06]} 37. Kd2 {[%clk 0:00:49]}  Ke7 {[%clk 0:00:02]} 38. Bd3 {[%clk 0:00:47]}  Kd6 {[%clk 0:00:02]} 39. b4 {[%clk 0:00:44]}  Rf6 {[%clk 0:00:02]} 40. Ke3 {[%clk 0:00:43]}  Ne7 {[%clk 0:00:02]} 41. Rh7 {[%clk 0:00:38]}  Bf5 {[%clk 0:00:03]} 42. Rh8 {[%clk 0:00:32]}  Bxd3 {[%clk 0:00:02]} 43. Kxd3 {[%clk 0:00:33]}  Rg6 {[%clk 0:00:02]} 44. Rh2 {[%clk 0:00:30]}  Nf5 {[%clk 0:00:02]} 45. Kc2 {[%clk 0:00:29]}  Rg3 {[%clk 0:00:03]} 46. Kb2 {[%clk 0:00:28]}  Ne3 {[%clk 0:00:03]} 47. Rh6+ {[%clk 0:00:27]}  Kc7 {[%clk 0:00:03]} 48. Rh7+ {[%clk 0:00:27]}  Kb6 {[%clk 0:00:04]} 49. Kb3 {[%clk 0:00:26]}  Nd1 {[%clk 0:00:03]} 50. Rh5 {[%clk 0:00:25]}  Nxc3 {[%clk 0:00:03]} 51. Kc2 {[%clk 0:00:26]}  Rxg2+ {[%clk 0:00:02]} 52. Kxc3 {[%clk 0:00:26]}  Rg3+ {[%clk 0:00:02]} 53. Kc2 {[%clk 0:00:26]}  Rg2+ {[%clk 0:00:02]} 54. Kb3 {[%clk 0:00:26]}  Kc6 {[%clk 0:00:01]} 55. Ka4 {[%clk 0:00:24]}  Ra2+ {[%clk 0:00:01]} 56. Kb3 {[%clk 0:00:24]}  Rd2 {[%clk 0:00:01]} 57. Kc3 {[%clk 0:00:24]}  Rg2 {[%clk 0:00:02]} 58. Rh3 {[%clk 0:00:23]}  Rg5 {[%clk 0:00:02]} 59. Kb3 {[%clk 0:00:21]}  Kb5 {[%clk 0:00:02]} 60. Rc3 {[%clk 0:00:21]}  b6 {[%clk 0:00:03]} 61. Rd3 {[%clk 0:00:20]}  Rg4 {[%clk 0:00:03]} 62. Kc3 {[%clk 0:00:21]}  Rg1 {[%clk 0:00:03]} 63. Rh3 {[%clk 0:00:20]}  Rc1+ {[%clk 0:00:03]} 64. Kb3 {[%clk 0:00:19]}  Rc4 {[%clk 0:00:04]} 65. Rh5 {[%clk 0:00:18]}  Rxb4+ {[%clk 0:00:04]} 66. Kc3 {[%clk 0:00:18]}  Rc4+ {[%clk 0:00:04]} 67. Kd3 {[%clk 0:00:19]}  Kc6 {[%clk 0:00:05]} 68. Rh6+ {[%clk 0:00:19]}  Kb5 {[%clk 0:00:05]} 69. Rd6 {[%clk 0:00:19]}  Rc6 {[%clk 0:00:03]} 70. Rxd5+ {[%clk 0:00:19]}  Kb4 {[%clk 0:00:03]} 71. Rd8 {[%clk 0:00:19]}  b5 {[%clk 0:00:03]} 72. d5 {[%clk 0:00:19]}  Rh6 {[%clk 0:00:04]} 73. Kd4 {[%clk 0:00:19]}  Rh4+ {[%clk 0:00:03]} 74. Ke5 {[%clk 0:00:19]}  Kc3 {[%clk 0:00:03]} 75. d6 {[%clk 0:00:19]}  b4 {[%clk 0:00:03]} 76. d7 {[%clk 0:00:19]}  Kb2 {[%clk 0:00:02]} 77. Rb8 {[%clk 0:00:18]}  Rh5+ {[%clk 0:00:02]} 78. Kd4 {[%clk 0:00:17]}  Rh4+ {[%clk 0:00:02]} 79. Kc5 {[%clk 0:00:17]}  Rh5+ {[%clk 0:00:01]} 80. Kxb4 {[%clk 0:00:17]}  Rd5 {[%clk 0:00:01]} 81. d8=Q {[%clk 0:00:17]}  Rxd8 {[%clk 0:00:01]} 82. Rxd8 {[%clk 0:00:18]}  Kc2 {[%clk 0:00:01]} 83. Rd7 {[%clk 0:00:18]} 1-0


[Site "https://www.chess.com"]

[Event "Titled Tuesday Blitz May 23 Early 2023"]
[White "djokovic74"]
[Black "LeoLV10"]
[WhiteElo "2597"]
[BlackElo "2408"]
[Result "1-0"]
[Round "07"]
[TimeControl "180+2"]
[Date "2023.05.23"]
[WhiteClock "0:00:37"]
[BlackClock "0:00:45"]

1. e4 {[%clk 0:03:00]}  c6 {[%clk 0:03:00]} 2. Nf3 {[%clk 0:03:01]}  d5 {[%clk 0:03:00]} 3. Nc3 {[%clk 0:03:02]}  Bg4 {[%clk 0:03:00]} 4. d4 {[%clk 0:03:02]}  e6 {[%clk 0:02:57]} 5. h3 {[%clk 0:03:02]}  Bxf3 {[%clk 0:02:57]} 6. Qxf3 {[%clk 0:03:01]}  Nd7 {[%clk 0:02:58]} 7. Bd3 {[%clk 0:02:55]}  dxe4 {[%clk 0:02:57]} 8. Nxe4 {[%clk 0:02:55]}  Ngf6 {[%clk 0:02:58]} 9. c3 {[%clk 0:02:53]}  Nxe4 {[%clk 0:02:58]} 10. Qxe4 {[%clk 0:02:54]}  Nf6 {[%clk 0:02:59]} 11. Qe2 {[%clk 0:02:52]}  Be7 {[%clk 0:02:59]} 12. O-O {[%clk 0:02:52]}  h6 {[%clk 0:02:59]} 13. Bf4 {[%clk 0:02:47]}  O-O {[%clk 0:02:58]} 14. Rad1 {[%clk 0:02:46]}  Re8 {[%clk 0:02:55]} 15. Rfe1 {[%clk 0:02:46]}  Bd6 {[%clk 0:02:52]} 16. Bc1 {[%clk 0:02:41]}  Qc7 {[%clk 0:02:51]} 17. Qf3 {[%clk 0:02:30]}  Nd7 {[%clk 0:02:47]} 18. b4 {[%clk 0:02:14]}  Rad8 {[%clk 0:02:42]} 19. g3 {[%clk 0:01:56]}  b6 {[%clk 0:02:35]} 20. Bc2 {[%clk 0:01:52]}  c5 {[%clk 0:02:32]} 21. bxc5 {[%clk 0:01:44]}  bxc5 {[%clk 0:02:31]} 22. Ba4 {[%clk 0:01:42]}  cxd4 {[%clk 0:02:27]} 23. Rxd4 {[%clk 0:01:29]}  Ne5 {[%clk 0:02:23]} 24. Qe2 {[%clk 0:01:29]}  Rf8 {[%clk 0:02:12]} 25. Rxd6 {[%clk 0:01:18]}  Qxd6 {[%clk 0:02:13]} 26. Qxe5 {[%clk 0:01:18]}  Qd3 {[%clk 0:02:07]} 27. Bb3 {[%clk 0:01:13]}  Qg6 {[%clk 0:02:01]} 28. c4 {[%clk 0:01:06]}  Rc8 {[%clk 0:01:47]} 29. c5 {[%clk 0:01:05]}  Rfd8 {[%clk 0:01:42]} 30. Be3 {[%clk 0:01:04]}  Qd3 {[%clk 0:01:31]} 31. Rc1 {[%clk 0:00:59]}  Rc6 {[%clk 0:01:16]} 32. Ba4 {[%clk 0:00:56]}  Ra6 {[%clk 0:01:13]} 33. Bb3 {[%clk 0:00:49]}  Qb5 {[%clk 0:00:59]} 34. Bc4 {[%clk 0:00:38]}  Qc6 {[%clk 0:00:44]} 35. Bxa6 {[%clk 0:00:37]}  Qxa6 {[%clk 0:00:45]} 1-0


[Site "https://www.chess.com"]

[Event "Titled Tuesday Blitz May 23 Early 2023"]
[White "DIM90"]
[Black "Melian, Juan Sebastian"]
[BlackFideId "3706575"]
[WhiteElo "2270"]
[BlackElo "2092"]
[Result "0-1"]
[Round "07"]
[TimeControl "180+2"]
[Date "2023.05.23"]
[WhiteClock "0:00:02"]
[BlackClock "0:00:04"]

1. e4 {[%clk 0:02:54]}  c5 {[%clk 0:02:55]} 2. d4 {[%clk 0:02:54]}  cxd4 {[%clk 0:02:56]} 3. c3 {[%clk 0:02:55]}  Nf6 {[%clk 0:02:56]} 4. e5 {[%clk 0:02:54]}  Nd5 {[%clk 0:02:57]} 5. cxd4 {[%clk 0:02:54]}  e6 {[%clk 0:02:57]} 6. Nf3 {[%clk 0:02:55]}  d6 {[%clk 0:02:57]} 7. Bc4 {[%clk 0:02:54]}  Be7 {[%clk 0:02:53]} 8. O-O {[%clk 0:02:53]}  O-O {[%clk 0:02:54]} 9. exd6 {[%clk 0:02:53]}  Bxd6 {[%clk 0:02:54]} 10. Nc3 {[%clk 0:02:53]}  Nxc3 {[%clk 0:02:55]} 11. bxc3 {[%clk 0:02:54]}  Nd7 {[%clk 0:02:53]} 12. Re1 {[%clk 0:02:53]}  Qc7 {[%clk 0:02:52]} 13. Qe2 {[%clk 0:02:51]}  b6 {[%clk 0:02:51]} 14. Bd3 {[%clk 0:02:45]}  Bb7 {[%clk 0:02:51]} 15. Ng5 {[%clk 0:02:41]}  Nf6 {[%clk 0:02:29]} 16. h3 {[%clk 0:02:36]}  Qxc3 {[%clk 0:02:04]} 17. Bb2 {[%clk 0:02:36]}  Qa5 {[%clk 0:02:04]} 18. d5 {[%clk 0:02:27]}  Qxd5 {[%clk 0:02:03]} 19. Ne4 {[%clk 0:02:27]}  Nxe4 {[%clk 0:01:41]} 20. Rad1 {[%clk 0:02:26]}  Rfd8 {[%clk 0:00:10]} 21. Qg4 {[%clk 0:02:13]}  Qg5 {[%clk 0:00:10]} 22. Rxe4 {[%clk 0:02:04]}  Qxg4 {[%clk 0:00:08]} 23. Rxg4 {[%clk 0:02:05]}  Bf8 {[%clk 0:00:08]} 24. Bf6 {[%clk 0:01:44]}  Rd5 {[%clk 0:00:06]} 25. Be2 {[%clk 0:01:35]}  Rxd1+ {[%clk 0:00:07]} 26. Bxd1 {[%clk 0:01:35]}  Rc8 {[%clk 0:00:07]} 27. Bb3 {[%clk 0:01:30]}  g6 {[%clk 0:00:07]} 28. Rd4 {[%clk 0:01:20]}  Bc6 {[%clk 0:00:05]} 29. Rd2 {[%clk 0:01:16]}  Bg7 {[%clk 0:00:05]} 30. Bg5 {[%clk 0:01:12]}  h6 {[%clk 0:00:05]} 31. Be3 {[%clk 0:01:11]}  Bf8 {[%clk 0:00:04]} 32. Re2 {[%clk 0:01:09]}  Rc7 {[%clk 0:00:04]} 33. Bd4 {[%clk 0:01:05]}  Rd7 {[%clk 0:00:04]} 34. Bb2 {[%clk 0:00:57]}  Bg7 {[%clk 0:00:05]} 35. Ba3 {[%clk 0:00:52]}  Bd4 {[%clk 0:00:04]} 36. Kh2 {[%clk 0:00:44]}  Bc5 {[%clk 0:00:03]} 37. Bb2 {[%clk 0:00:43]}  Bd6+ {[%clk 0:00:03]} 38. Kg1 {[%clk 0:00:40]}  Be7 {[%clk 0:00:03]} 39. g3 {[%clk 0:00:32]}  Bf8 {[%clk 0:00:03]} 40. Kh2 {[%clk 0:00:31]}  Bg7 {[%clk 0:00:04]} 41. Ba3 {[%clk 0:00:30]}  Bf8 {[%clk 0:00:04]} 42. Bb2 {[%clk 0:00:30]}  Bg7 {[%clk 0:00:04]} 43. Ba3 {[%clk 0:00:30]}  a5 {[%clk 0:00:05]} 44. h4 {[%clk 0:00:30]}  a4 {[%clk 0:00:06]} 45. Bc4 {[%clk 0:00:27]}  b5 {[%clk 0:00:05]} 46. Bxe6 {[%clk 0:00:25]}  fxe6 {[%clk 0:00:05]} 47. Rxe6 {[%clk 0:00:26]}  Bd5 {[%clk 0:00:05]} 48. Rxg6 {[%clk 0:00:25]}  Kf7 {[%clk 0:00:05]} 49. Rb6 {[%clk 0:00:20]}  Bc4 {[%clk 0:00:05]} 50. Bc5 {[%clk 0:00:17]}  Rd1 {[%clk 0:00:04]} 51. Rb7+ {[%clk 0:00:13]}  Kg6 {[%clk 0:00:04]} 52. Rb6+ {[%clk 0:00:13]}  Kf5 {[%clk 0:00:04]} 53. Be3 {[%clk 0:00:10]}  Bd5 {[%clk 0:00:03]} 54. f3 {[%clk 0:00:09]}  Bxf3 {[%clk 0:00:03]} 55. Rxb5+ {[%clk 0:00:09]}  Ke4 {[%clk 0:00:03]} 56. Bg1 {[%clk 0:00:09]}  Rd2+ {[%clk 0:00:03]} 57. Kh3 {[%clk 0:00:09]}  h5 {[%clk 0:00:03]} 58. Rb4+ {[%clk 0:00:09]}  Kd5 {[%clk 0:00:03]} 59. g4 {[%clk 0:00:07]}  Bxg4+ {[%clk 0:00:03]} 60. Kg3 {[%clk 0:00:07]}  Be5+ {[%clk 0:00:03]} 61. Rf4 {[%clk 0:00:04]}  Rd3+ {[%clk 0:00:04]} 62. Kf2 {[%clk 0:00:02]}  Bxf4 {[%clk 0:00:04]} 0-1


[Site "https://www.chess.com"]

[Event "Titled Tuesday Blitz May 23 Early 2023"]
[White "Hajiyev, Kanan"]
[Black "Djordjevic, Vuk"]
[WhiteFideId "13404148"]
[BlackFideId "902098"]
[WhiteElo "2103"]
[BlackElo "2452"]
[Result "0-1"]
[Round "07"]
[TimeControl "180+2"]
[Date "2023.05.23"]
[WhiteClock "0:00:00"]
[BlackClock "0:02:36"]

1. d4 {[%clk 0:03:00]}  Nf6 {[%clk 0:03:00]} 2. c4 {[%clk 0:03:01]}  c5 {[%clk 0:03:00]} 3. Nf3 {[%clk 0:03:02]}  cxd4 {[%clk 0:03:00]} 4. Nxd4 {[%clk 0:03:03]}  Nc6 {[%clk 0:03:01]} 5. Nc3 {[%clk 0:03:02]}  g6 {[%clk 0:03:02]} 6. e4 {[%clk 0:03:02]}  d6 {[%clk 0:03:02]} 7. Be3 {[%clk 0:03:02]}  Bg7 {[%clk 0:03:03]} 8. Be2 {[%clk 0:03:02]}  O-O {[%clk 0:03:03]} 9. O-O {[%clk 0:03:02]}  Nxd4 {[%clk 0:03:04]} 10. Bxd4 {[%clk 0:02:53]}  Be6 {[%clk 0:03:04]} 11. Rc1 {[%clk 0:02:49]}  Nd7 {[%clk 0:03:05]} 12. Bxg7 {[%clk 0:02:46]}  Kxg7 {[%clk 0:03:06]} 13. Qd4+ {[%clk 0:02:46]}  Kg8 {[%clk 0:03:06]} 14. h4 {[%clk 0:02:45]}  Qb6 {[%clk 0:03:07]} 15. Qd2 {[%clk 0:02:43]}  Rac8 {[%clk 0:03:07]} 16. b3 {[%clk 0:02:39]}  Qa5 {[%clk 0:03:08]} 17. Rfd1 {[%clk 0:02:35]}  Rc5 {[%clk 0:03:08]} 18. h5 {[%clk 0:01:50]}  Rfc8 {[%clk 0:03:06]} 19. Qf4 {[%clk 0:01:28]}  a6 {[%clk 0:03:02]} 20. h6 {[%clk 0:01:23]}  b5 {[%clk 0:03:01]} 21. a4 {[%clk 0:00:42]}  bxc4 {[%clk 0:03:01]} 22. Bxc4 {[%clk 0:00:42]}  Bxc4 {[%clk 0:03:00]} 23. bxc4 {[%clk 0:00:42]}  Rxc4 {[%clk 0:02:59]} 24. Nd5 {[%clk 0:00:42]}  Qd8 {[%clk 0:02:59]} 25. Rxc4 {[%clk 0:00:32]}  Rxc4 {[%clk 0:03:00]} 26. a5 {[%clk 0:00:31]}  e6 {[%clk 0:02:57]} 27. Qxd6 {[%clk 0:00:25]}  exd5 {[%clk 0:02:56]} 28. Qxd5 {[%clk 0:00:25]}  Rc7 {[%clk 0:02:56]} 29. Qe5 {[%clk 0:00:22]}  f6 {[%clk 0:02:47]} 30. Qe6+ {[%clk 0:00:20]}  Kf8 {[%clk 0:02:47]} 31. e5 {[%clk 0:00:11]}  Qe7 {[%clk 0:02:45]} 32. Qxa6 {[%clk 0:00:06]}  fxe5 {[%clk 0:02:43]} 33. Rd3 {[%clk 0:00:05]}  Nf6 {[%clk 0:02:41]} 34. Qa8+ {[%clk 0:00:04]}  Kf7 {[%clk 0:02:41]} 35. Rf3 {[%clk 0:00:05]}  e4 {[%clk 0:02:41]} 36. Qd5+ {[%clk 0:00:03]}  Qe6 {[%clk 0:02:41]} 37. Rxf6+ {[%clk 0:00:03]}  Kxf6 {[%clk 0:02:41]} 38. Qd8+ {[%clk 0:00:04]}  Re7 {[%clk 0:02:38]} 39. Qh8+ {[%clk 0:00:04]}  Kg5 {[%clk 0:02:38]} 40. a6 {[%clk 0:00:03]}  e3 {[%clk 0:02:38]} 41. fxe3 {[%clk 0:00:02]}  Qxe3+ {[%clk 0:02:37]} 42. Kh2 {[%clk 0:00:03]}  Qe5+ {[%clk 0:02:38]} 43. Kh3 {[%clk 0:00:00]}  Qxh8 {[%clk 0:02:36]} 0-1


[Site "https://www.chess.com"]

[Event "Titled Tuesday Blitz May 23 Early 2023"]
[White "Korkmaz, Necmettin"]
[Black "Weetik, Vjacheslav"]
[WhiteFideId "6303285"]
[BlackFideId "4153472"]
[WhiteElo "2097"]
[BlackElo "2469"]
[Result "0-1"]
[Round "07"]
[TimeControl "180+2"]
[Date "2023.05.23"]
[WhiteClock "0:01:43"]
[BlackClock "0:01:24"]

1. e4 {[%clk 0:02:58]}  c6 {[%clk 0:03:00]} 2. d4 {[%clk 0:02:58]}  d5 {[%clk 0:03:00]} 3. Nc3 {[%clk 0:02:58]}  dxe4 {[%clk 0:03:01]} 4. Nxe4 {[%clk 0:02:59]}  Bf5 {[%clk 0:03:01]} 5. Ng3 {[%clk 0:02:59]}  Bg6 {[%clk 0:03:01]} 6. h4 {[%clk 0:03:00]}  h6 {[%clk 0:03:01]} 7. Nf3 {[%clk 0:03:00]}  e6 {[%clk 0:03:02]} 8. h5 {[%clk 0:03:00]}  Bh7 {[%clk 0:03:02]} 9. Bd3 {[%clk 0:03:01]}  Bxd3 {[%clk 0:03:02]} 10. Qxd3 {[%clk 0:03:01]}  Nf6 {[%clk 0:03:03]} 11. Bd2 {[%clk 0:03:02]}  c5 {[%clk 0:03:03]} 12. O-O-O {[%clk 0:03:02]}  Nc6 {[%clk 0:03:03]} 13. Be3 {[%clk 0:02:53]}  Qa5 {[%clk 0:03:03]} 14. Kb1 {[%clk 0:02:52]}  Be7 {[%clk 0:03:03]} 15. dxc5 {[%clk 0:02:48]}  Bxc5 {[%clk 0:03:02]} 16. Bxc5 {[%clk 0:02:47]}  Qxc5 {[%clk 0:03:02]} 17. Ne4 {[%clk 0:02:47]}  Nxe4 {[%clk 0:03:00]} 18. Qxe4 {[%clk 0:02:38]}  O-O {[%clk 0:02:59]} 19. Qe2 {[%clk 0:02:32]}  Rfd8 {[%clk 0:02:57]} 20. g4 {[%clk 0:02:27]}  Nb4 {[%clk 0:02:03]} 21. c3 {[%clk 0:02:23]}  Nd5 {[%clk 0:02:02]} 22. Rd4 {[%clk 0:02:20]}  Rd6 {[%clk 0:01:54]} 23. Rhd1 {[%clk 0:02:20]}  Rb6 {[%clk 0:01:54]} 24. Qc2 {[%clk 0:02:15]}  Qxc3 {[%clk 0:01:29]} 25. R4d3 {[%clk 0:01:52]}  Qxc2+ {[%clk 0:01:23]} 26. Kxc2 {[%clk 0:01:43]}  Nb4+ {[%clk 0:01:24]} 0-1


[Site "https://www.chess.com"]

[Event "Titled Tuesday Blitz May 23 Early 2023"]
[White "Camilla_Lee"]
[Black "Belov, Alexei"]
[BlackFideId "4128206"]
[WhiteElo "2673"]
[BlackElo "2492"]
[Result "1/2-1/2"]
[Round "07"]
[TimeControl "180+2"]
[Date "2023.05.23"]
[WhiteClock "0:00:11"]
[BlackClock "0:00:15"]

1. e4 {[%clk 0:03:00]}  e6 {[%clk 0:02:58]} 2. d4 {[%clk 0:03:00]}  d5 {[%clk 0:02:57]} 3. e5 {[%clk 0:03:01]}  c5 {[%clk 0:02:56]} 4. c3 {[%clk 0:03:01]}  Qb6 {[%clk 0:02:56]} 5. Nf3 {[%clk 0:03:02]}  Nc6 {[%clk 0:02:56]} 6. a3 {[%clk 0:03:02]}  Bd7 {[%clk 0:02:56]} 7. b4 {[%clk 0:03:02]}  cxd4 {[%clk 0:02:56]} 8. cxd4 {[%clk 0:03:03]}  Rc8 {[%clk 0:02:57]} 9. Bb2 {[%clk 0:02:54]}  Na5 {[%clk 0:02:56]} 10. Bc3 {[%clk 0:02:47]}  Nc4 {[%clk 0:02:53]} 11. Bd3 {[%clk 0:02:46]}  Nh6 {[%clk 0:02:37]} 12. O-O {[%clk 0:02:43]}  Be7 {[%clk 0:02:35]} 13. Nbd2 {[%clk 0:02:22]}  Nxd2 {[%clk 0:02:20]} 14. Qxd2 {[%clk 0:02:08]}  Bb5 {[%clk 0:02:15]} 15. a4 {[%clk 0:02:03]}  Bxd3 {[%clk 0:02:14]} 16. Qxd3 {[%clk 0:02:04]}  O-O {[%clk 0:02:13]} 17. a5 {[%clk 0:01:57]}  Qc6 {[%clk 0:02:09]} 18. Rfc1 {[%clk 0:01:57]}  Qc4 {[%clk 0:02:04]} 19. Qxc4 {[%clk 0:01:51]}  Rxc4 {[%clk 0:02:04]} 20. Nd2 {[%clk 0:01:51]}  Rc7 {[%clk 0:01:57]} 21. Nb3 {[%clk 0:01:46]}  Rfc8 {[%clk 0:01:55]} 22. Bd2 {[%clk 0:01:46]}  Nf5 {[%clk 0:01:48]} 23. b5 {[%clk 0:01:43]}  Rc4 {[%clk 0:01:31]} 24. g4 {[%clk 0:01:17]}  Nh4 {[%clk 0:01:27]} 25. Be3 {[%clk 0:01:08]}  Kf8 {[%clk 0:01:09]} 26. Kf1 {[%clk 0:01:07]}  Ke8 {[%clk 0:00:56]} 27. Ke2 {[%clk 0:01:06]}  Kd8 {[%clk 0:00:52]} 28. Rxc4 {[%clk 0:01:04]}  Rxc4 {[%clk 0:00:50]} 29. a6 {[%clk 0:00:35]}  b6 {[%clk 0:00:48]} 30. Nc5 {[%clk 0:00:33]}  Ng2 {[%clk 0:00:38]} 31. Kd3 {[%clk 0:00:18]}  Nxe3 {[%clk 0:00:36]} 32. fxe3 {[%clk 0:00:17]}  Bxc5 {[%clk 0:00:32]} 33. dxc5 {[%clk 0:00:15]}  Rxc5 {[%clk 0:00:31]} 34. Rb1 {[%clk 0:00:16]}  Rc4 {[%clk 0:00:32]} 35. h3 {[%clk 0:00:14]}  h6 {[%clk 0:00:31]} 36. Rb2 {[%clk 0:00:14]}  Kd7 {[%clk 0:00:30]} 37. Rb1 {[%clk 0:00:14]}  Ke7 {[%clk 0:00:29]} 38. Rb2 {[%clk 0:00:12]}  Kd7 {[%clk 0:00:22]} 39. Rb1 {[%clk 0:00:12]}  Re4 {[%clk 0:00:20]} 40. Rf1 {[%clk 0:00:10]}  Ke7 {[%clk 0:00:20]} 41. Rc1 {[%clk 0:00:10]}  Kd7 {[%clk 0:00:18]} 42. Rf1 {[%clk 0:00:10]}  Ke8 {[%clk 0:00:19]} 43. Rc1 {[%clk 0:00:11]}  Kd7 {[%clk 0:00:15]} 44. Rf1 {[%clk 0:00:11]} 1/2-1/2


[Site "https://www.chess.com"]

[Event "Titled Tuesday Blitz May 23 Early 2023"]
[White "Goncalves, Davi Sulzbacher"]
[Black "Schnaider, Ilan"]
[WhiteFideId "2154510"]
[BlackFideId "169013"]
[WhiteElo "2182"]
[BlackElo "2224"]
[Result "0-1"]
[Round "07"]
[TimeControl "180+2"]
[Date "2023.05.23"]
[WhiteClock "0:00:00"]
[BlackClock "0:01:33"]

1. Nf3 {[%clk 0:03:00]}  Nf6 {[%clk 0:02:54]} 2. g3 {[%clk 0:03:00]}  g6 {[%clk 0:02:54]} 3. Bg2 {[%clk 0:03:00]}  Bg7 {[%clk 0:02:55]} 4. O-O {[%clk 0:03:01]}  O-O {[%clk 0:02:55]} 5. c4 {[%clk 0:03:01]}  d5 {[%clk 0:02:55]} 6. cxd5 {[%clk 0:03:00]}  Nxd5 {[%clk 0:02:56]} 7. Nc3 {[%clk 0:03:01]}  Nc6 {[%clk 0:02:56]} 8. d4 {[%clk 0:02:48]}  e5 {[%clk 0:02:56]} 9. Nxd5 {[%clk 0:02:41]}  e4 {[%clk 0:02:57]} 10. Bf4 {[%clk 0:02:11]}  Qxd5 {[%clk 0:02:50]} 11. Ne5 {[%clk 0:02:11]}  Nxd4 {[%clk 0:02:30]} 12. e3 {[%clk 0:01:59]}  Bxe5 {[%clk 0:02:30]} 13. Bxe5 {[%clk 0:02:00]}  Nf3+ {[%clk 0:02:23]} 14. Bxf3 {[%clk 0:01:51]}  Qxe5 {[%clk 0:02:23]} 15. Bg2 {[%clk 0:01:51]}  Be6 {[%clk 0:02:22]} 16. Qa4 {[%clk 0:01:44]}  f5 {[%clk 0:02:20]} 17. Rfc1 {[%clk 0:01:40]}  Rfd8 {[%clk 0:02:17]} 18. Qb4 {[%clk 0:01:32]}  b6 {[%clk 0:02:01]} 19. Qe7 {[%clk 0:00:36]}  Rd7 {[%clk 0:01:53]} 20. Qg5 {[%clk 0:00:37]}  Kg7 {[%clk 0:01:50]} 21. Rc2 {[%clk 0:00:26]}  h6 {[%clk 0:01:49]} 22. Qf4 {[%clk 0:00:26]}  Qxf4 {[%clk 0:01:49]} 23. gxf4 {[%clk 0:00:27]}  Rad8 {[%clk 0:01:48]} 24. Bf1 {[%clk 0:00:26]}  c5 {[%clk 0:01:48]} 25. Bc4 {[%clk 0:00:19]}  Kf6 {[%clk 0:01:38]} 26. Kg2 {[%clk 0:00:17]}  Rd2 {[%clk 0:01:36]} 27. Rac1 {[%clk 0:00:15]}  Bxc4 {[%clk 0:01:35]} 28. Rxd2 {[%clk 0:00:14]}  Rxd2 {[%clk 0:01:34]} 29. Rxc4 {[%clk 0:00:15]}  Rxb2 {[%clk 0:01:34]} 30. a4 {[%clk 0:00:00]}  Rb4 {[%clk 0:01:33]} 0-1


[Site "https://www.chess.com"]

[Event "Titled Tuesday Blitz May 23 Early 2023"]
[White "koncheto"]
[Black "Barbot, Pierre"]
[BlackFideId "663727"]
[WhiteElo "2610"]
[BlackElo "2431"]
[Result "1-0"]
[Round "07"]
[TimeControl "180+2"]
[Date "2023.05.23"]
[WhiteClock "0:00:26"]
[BlackClock "0:00:00"]

1. e4 {[%clk 0:02:52]}  c6 {[%clk 0:02:59]} 2. d4 {[%clk 0:02:50]}  d5 {[%clk 0:02:58]} 3. Nc3 {[%clk 0:02:51]}  dxe4 {[%clk 0:02:57]} 4. Nxe4 {[%clk 0:02:52]}  Nf6 {[%clk 0:02:58]} 5. Nxf6+ {[%clk 0:02:52]}  exf6 {[%clk 0:02:59]} 6. c3 {[%clk 0:02:53]}  Bd6 {[%clk 0:02:57]} 7. Bd3 {[%clk 0:02:54]}  O-O {[%clk 0:02:57]} 8. Ne2 {[%clk 0:02:55]}  Re8 {[%clk 0:02:56]} 9. O-O {[%clk 0:02:55]}  Nd7 {[%clk 0:02:49]} 10. Ng3 {[%clk 0:02:55]}  g6 {[%clk 0:02:22]} 11. Ne4 {[%clk 0:02:49]}  Be7 {[%clk 0:02:14]} 12. Bf4 {[%clk 0:02:47]}  Nf8 {[%clk 0:02:08]} 13. Qf3 {[%clk 0:02:46]}  f5 {[%clk 0:02:05]} 14. Nd2 {[%clk 0:02:40]}  Ne6 {[%clk 0:01:45]} 15. Be5 {[%clk 0:02:30]}  Bf6 {[%clk 0:01:37]} 16. Bxf6 {[%clk 0:02:24]}  Qxf6 {[%clk 0:01:36]} 17. Rfe1 {[%clk 0:02:25]}  Bd7 {[%clk 0:01:34]} 18. Nc4 {[%clk 0:02:24]}  Ng5 {[%clk 0:01:24]} 19. Qf4 {[%clk 0:02:22]}  Ne6 {[%clk 0:01:09]} 20. Qd6 {[%clk 0:02:11]}  Qe7 {[%clk 0:01:00]} 21. Qg3 {[%clk 0:01:47]}  f4 {[%clk 0:00:56]} 22. Qg4 {[%clk 0:01:33]}  h5 {[%clk 0:00:34]} 23. Qe2 {[%clk 0:01:33]}  Rad8 {[%clk 0:00:26]} 24. g3 {[%clk 0:01:24]}  Qg5 {[%clk 0:00:13]} 25. Qf3 {[%clk 0:01:14]}  Bc8 {[%clk 0:00:08]} 26. Re5 {[%clk 0:01:13]}  Qf6 {[%clk 0:00:06]} 27. Rae1 {[%clk 0:01:13]}  Rf8 {[%clk 0:00:04]} 28. Nd2 {[%clk 0:01:07]}  c5 {[%clk 0:00:03]} 29. Ne4 {[%clk 0:01:07]}  Qg7 {[%clk 0:00:03]} 30. Nxc5 {[%clk 0:01:02]}  Nxc5 {[%clk 0:00:04]} 31. Rxc5 {[%clk 0:01:03]}  fxg3 {[%clk 0:00:03]} 32. fxg3 {[%clk 0:01:00]}  b6 {[%clk 0:00:03]} 33. Rc7 {[%clk 0:01:00]}  Be6 {[%clk 0:00:03]} 34. Rxa7 {[%clk 0:00:54]}  Bg4 {[%clk 0:00:02]} 35. Qf4 {[%clk 0:00:43]}  Rde8 {[%clk 0:00:03]} 36. Rxe8 {[%clk 0:00:40]}  Rxe8 {[%clk 0:00:04]} 37. Bc4 {[%clk 0:00:41]}  Rf8 {[%clk 0:00:02]} 38. Rb7 {[%clk 0:00:37]}  g5 {[%clk 0:00:02]} 39. Qd6 {[%clk 0:00:27]}  h4 {[%clk 0:00:02]} 40. Rxb6 {[%clk 0:00:25]}  hxg3 {[%clk 0:00:00]} 41. Qxg3 {[%clk 0:00:26]} 1-0


[Site "https://www.chess.com"]